[Event "*** Titled Tuesday Blitz"]
[Site "Chess.com"]
[Date "2020.05.05"]
[Round "6"]
[White "2346PL"]
[Black "WoolworthsManly"]
[Result "1/2-1/2"]
[WhiteElo "2370"]
[BlackElo "2644"]
[TimeControl "180+1"]
[EndTime "11:08:21 PDT"]
[Termination "Game drawn by agreement"]

1. d4 {[%clk 0:03:00.9]} 1... d5 {[%clk 0:03:00.1]} 2. Nf3 {[%clk 0:03:00.7]}
2... Nf6 {[%clk 0:02:59.8]} 3. c3 {[%clk 0:03:01.4]} 3... c6 {[%clk 0:03:00.7]}
4. Bg5 {[%clk 0:03:00.9]} 4... Ne4 {[%clk 0:03:00.5]} 5. Bf4 {[%clk 0:03:01]}
5... Qb6 {[%clk 0:03:01]} 6. Qb3 {[%clk 0:03:00.3]} 6... Bf5 {[%clk 0:03:00.9]}
7. Nbd2 {[%clk 0:02:59.6]} 7... Nxd2 {[%clk 0:03:00.3]} 8. Nxd2 {[%clk 0:02:59]}
8... Nd7 {[%clk 0:02:59.1]} 9. e3 {[%clk 0:02:58.2]} 9... e6 {[%clk 0:02:57.2]}
10. Be2 {[%clk 0:02:58.3]} 10... Be7 {[%clk 0:02:57.3]} 11. O-O {[%clk
0:02:58.5]} 11... O-O {[%clk 0:02:57.8]} 12. h3 {[%clk 0:02:59.1]} 12... c5
{[%clk 0:02:56.1]} 13. Qxb6 {[%clk 0:02:56.2]} 13... Nxb6 {[%clk 0:02:56]} 14.
dxc5 {[%clk 0:02:50.8]} 14... Bxc5 {[%clk 0:02:55.4]} 15. Nb3 {[%clk 0:02:33.1]}
15... Be7 {[%clk 0:02:46.3]} 16. Nd4 {[%clk 0:02:32.9]} 16... Bg6 {[%clk
0:02:46]} 17. a4 {[%clk 0:02:26.5]} 17... a6 {[%clk 0:02:28.8]} 18. Nf3 {[%clk
0:02:16.3]} 18... Rac8 {[%clk 0:02:21.1]} 19. Ne5 {[%clk 0:02:15.1]} 19... f6
{[%clk 0:02:10.4]} 20. Nxg6 {[%clk 0:02:13.4]} 20... hxg6 {[%clk 0:02:11.3]} 21.
e4 {[%clk 0:01:44.6]} 21... dxe4 {[%clk 0:02:06.4]} 22. Rfd1 {[%clk 0:01:44.3]}
22... Nd5 {[%clk 0:02:03.1]} 23. Bd2 {[%clk 0:01:37]} 23... Rfd8 {[%clk
0:01:54.6]} 24. c4 {[%clk 0:01:29.9]} 24... Nb4 {[%clk 0:01:30.7]} 25. Bxb4
{[%clk 0:01:29.6]} 25... Bxb4 {[%clk 0:01:30.9]} 26. Kf1 {[%clk 0:01:26]} 26...
Bd2 {[%clk 0:01:29]} 27. b3 {[%clk 0:01:17.1]} 27... a5 {[%clk 0:01:27.5]} 28.
Ra2 {[%clk 0:01:07.9]} 28... Bb4 {[%clk 0:01:27.3]} 29. Rc2 {[%clk 0:01:01.7]}
29... b6 {[%clk 0:01:26.5]} 30. g4 {[%clk 0:00:57]} 30... e5 {[%clk 0:01:23.6]}
31. f3 {[%clk 0:00:50.1]} 31... e3 {[%clk 0:01:20.5]} 32. Rd3 {[%clk 0:00:47.3]}
32... Bd2 {[%clk 0:01:17.8]} 33. Rxd8+ {[%clk 0:00:33]} 33... Rxd8 {[%clk
0:01:17.8]} 34. c5 {[%clk 0:00:33.9]} 34... bxc5 {[%clk 0:01:16.9]} 35. Rxc5
{[%clk 0:00:33.5]} 35... Kh7 {[%clk 0:01:16.2]} 36. Rc7 {[%clk 0:00:31.1]} 36...
Kh6 {[%clk 0:01:16.4]} 37. h4 {[%clk 0:00:30.8]} 37... Rd4 {[%clk 0:01:13.9]}
38. Bc4 {[%clk 0:00:29.9]} 38... Rd8 {[%clk 0:01:07.9]} 39. Rc6 {[%clk
0:00:27.1]} 39... Rf8 {[%clk 0:01:03.6]} 40. Ke2 {[%clk 0:00:26.6]} 40... f5
{[%clk 0:01:03.8]} 41. Bd3 {[%clk 0:00:25.3]} 41... e4 {[%clk 0:00:58.7]} 42.
fxe4 {[%clk 0:00:22]} 42... fxg4 {[%clk 0:00:59]} 43. e5 {[%clk 0:00:20.7]}
43... Kh5 {[%clk 0:00:59.5]} 44. Rxg6 {[%clk 0:00:19.3]} 44... Kxh4 {[%clk
0:00:58.8]} 45. e6 {[%clk 0:00:17.9]} 45... Re8 {[%clk 0:00:55]} 46. Bf5 {[%clk
0:00:15.4]} 46... g3 {[%clk 0:00:48.5]} 47. Rg4+ {[%clk 0:00:15.4]} 47... Kh5
{[%clk 0:00:48.8]} 48. Rxg7 {[%clk 0:00:13.8]} 48... Bb4 {[%clk 0:00:42.3]} 49.
Rxg3 {[%clk 0:00:11.9]} 49... Rf8 {[%clk 0:00:42.7]} 50. Rf3 {[%clk 0:00:08.5]}
50... Bc5 {[%clk 0:00:40.1]} 51. Kd3 {[%clk 0:00:05.4]} 51... Kg5 {[%clk
0:00:40.1]} 52. Be4 {[%clk 0:00:04.7]} 52... Rxf3 {[%clk 0:00:39.5]} 53. Bxf3
{[%clk 0:00:04.7]} 53... Kf4 {[%clk 0:00:40]} 54. Be2 {[%clk 0:00:04.9]} 54...
Ke5 {[%clk 0:00:39.5]} 55. Bg4 {[%clk 0:00:05.1]} 55... Kf4 {[%clk 0:00:39.8]}
56. Be2 {[%clk 0:00:05.2]} 56... Ke5 {[%clk 0:00:40]} 57. Bg4 {[%clk 0:00:05.4]}
57... Kd6 {[%clk 0:00:38.1]} 58. Ke2 {[%clk 0:00:04.5]} 58... Kd5 {[%clk
0:00:37.6]} 59. Kd3 {[%clk 0:00:04.9]} 59... Ke5 {[%clk 0:00:34.4]} 60. e7
{[%clk 0:00:04.8]} 60... Bxe7 {[%clk 0:00:33.1]} 61. Kxe3 {[%clk 0:00:05.7]}
1/2-1/2

[Event "*** Titled Tuesday Blitz"]
[Site "Chess.com"]
[Date "2020.05.05"]
[Round "6"]
[White "chessdjw"]
[Black "rpragchess"]
[Result "1/2-1/2"]
[WhiteElo "2663"]
[BlackElo "2840"]
[TimeControl "180+1"]
[EndTime "11:08:22 PDT"]
[Termination "Game drawn by repetition"]

1. e4 {[%clk 0:03:00.9]} 1... c5 {[%clk 0:02:57.6]} 2. Nf3 {[%clk 0:03:00.6]}
2... Nc6 {[%clk 0:02:56.7]} 3. Bb5 {[%clk 0:03:00.3]} 3... g6 {[%clk 0:02:56]}
4. O-O {[%clk 0:03:00.4]} 4... Bg7 {[%clk 0:02:55.6]} 5. c3 {[%clk 0:03:00.2]}
5... Nf6 {[%clk 0:02:54.1]} 6. Re1 {[%clk 0:03:00.8]} 6... O-O {[%clk
0:02:52.4]} 7. d4 {[%clk 0:03:01.2]} 7... d5 {[%clk 0:02:51.6]} 8. e5 {[%clk
0:03:01.6]} 8... Ne4 {[%clk 0:02:51.5]} 9. Be3 {[%clk 0:03:02.3]} 9... cxd4
{[%clk 0:02:49.4]} 10. cxd4 {[%clk 0:03:01]} 10... Qb6 {[%clk 0:02:49.9]} 11.
Bxc6 {[%clk 0:02:59.9]} 11... bxc6 {[%clk 0:02:50.8]} 12. Qc1 {[%clk 0:02:59.8]}
12... a5 {[%clk 0:02:50.3]} 13. Nc3 {[%clk 0:02:59]} 13... Nxc3 {[%clk
0:02:24.3]} 14. Qxc3 {[%clk 0:02:58.2]} 14... a4 {[%clk 0:02:24.5]} 15. Rac1
{[%clk 0:02:53.8]} 15... Bd7 {[%clk 0:02:23.3]} 16. h3 {[%clk 0:02:48.2]} 16...
Rfb8 {[%clk 0:02:20]} 17. Re2 {[%clk 0:02:47.9]} 17... h6 {[%clk 0:02:17.9]} 18.
Ne1 {[%clk 0:02:38.1]} 18... Bf5 {[%clk 0:02:12.2]} 19. g4 {[%clk 0:02:37]}
19... Bd7 {[%clk 0:02:11.2]} 20. Nd3 {[%clk 0:02:37.1]} 20... Qb5 {[%clk
0:01:56.7]} 21. Rd2 {[%clk 0:02:32.4]} 21... f5 {[%clk 0:01:46]} 22. Nc5 {[%clk
0:02:25.6]} 22... Bc8 {[%clk 0:01:44.6]} 23. f3 {[%clk 0:02:25.6]} 23... Qb4
{[%clk 0:01:33.7]} 24. Qxb4 {[%clk 0:01:55.5]} 24... Rxb4 {[%clk 0:01:34.6]} 25.
a3 {[%clk 0:01:55.7]} 25... Rb5 {[%clk 0:01:32.1]} 26. Rc3 {[%clk 0:01:52.4]}
26... h5 {[%clk 0:01:22.1]} 27. gxh5 {[%clk 0:01:49.3]} 27... gxh5 {[%clk
0:01:15.9]} 28. Bf4 {[%clk 0:01:44.9]} 28... e6 {[%clk 0:01:11.1]} 29. h4 {[%clk
0:01:43.8]} 29... Bf8 {[%clk 0:01:10.4]} 30. Rdc2 {[%clk 0:01:40.2]} 30... Kf7
{[%clk 0:01:05.9]} 31. Bg5 {[%clk 0:01:39.4]} 31... Raa5 {[%clk 0:00:58.2]} 32.
Nd3 {[%clk 0:01:35.4]} 32... Bd7 {[%clk 0:00:58.2]} 33. Kf2 {[%clk 0:01:31.9]}
33... Ra8 {[%clk 0:00:51.9]} 34. Nc5 {[%clk 0:01:22.8]} 34... Be8 {[%clk
0:00:51.2]} 35. Ke3 {[%clk 0:01:18.5]} 35... Raa5 {[%clk 0:00:40.2]} 36. Nd3
{[%clk 0:01:17.4]} 36... Ra8 {[%clk 0:00:39.6]} 37. Kd2 {[%clk 0:01:15.4]} 37...
Rab8 {[%clk 0:00:37.1]} 38. Kc1 {[%clk 0:01:14.1]} 38... Rb3 {[%clk 0:00:32.1]}
39. Rxb3 {[%clk 0:01:00]} 39... Rxb3 {[%clk 0:00:31.5]} 40. Kd2 {[%clk
0:01:00.2]} 40... Bd7 {[%clk 0:00:24.4]} 41. Rc3 {[%clk 0:00:59]} 41... Rb5
{[%clk 0:00:21.1]} 42. Kc1 {[%clk 0:00:55.2]} 42... c5 {[%clk 0:00:14.8]} 43.
Nxc5 {[%clk 0:00:52.8]} 43... Bxc5 {[%clk 0:00:14.3]} 44. Rxc5 {[%clk 0:00:53]}
44... Rxc5+ {[%clk 0:00:11.6]} 45. dxc5 {[%clk 0:00:53.9]} 45... d4 {[%clk
0:00:12.1]} 46. Kc2 {[%clk 0:00:52]} 46... Bb5 {[%clk 0:00:12]} 47. b3 {[%clk
0:00:49.7]} 47... Ke8 {[%clk 0:00:11.9]} 48. bxa4 {[%clk 0:00:48.8]} 48... Bxa4+
{[%clk 0:00:12.8]} 49. Kd3 {[%clk 0:00:49.1]} 49... Kd7 {[%clk 0:00:13.4]} 50.
Kxd4 {[%clk 0:00:49.1]} 50... Kc6 {[%clk 0:00:14]} 51. Be3 {[%clk 0:00:48.9]}
51... Bd1 {[%clk 0:00:14.2]} 52. f4 {[%clk 0:00:39.5]} 52... Kb5 {[%clk
0:00:13.5]} 53. Kc3 {[%clk 0:00:38.1]} 53... Ba4 {[%clk 0:00:12.9]} 54. Bd4
{[%clk 0:00:37.9]} 54... Bd1 {[%clk 0:00:13.3]} 55. Bf2 {[%clk 0:00:38.5]} 55...
Ba4 {[%clk 0:00:13.8]} 56. Be1 {[%clk 0:00:38.9]} 56... Bd1 {[%clk 0:00:14.1]}
57. c6 {[%clk 0:00:33.9]} 57... Kxc6 {[%clk 0:00:13.3]} 58. Kb4 {[%clk
0:00:34.2]} 58... Be2 {[%clk 0:00:13.9]} 59. a4 {[%clk 0:00:33]} 59... Bf1
{[%clk 0:00:14.5]} 60. Bf2 {[%clk 0:00:31.6]} 60... Be2 {[%clk 0:00:14.9]} 61.
Be1 {[%clk 0:00:32.2]} 61... Bf1 {[%clk 0:00:15.5]} 62. Bf2 {[%clk 0:00:32.6]}
62... Be2 {[%clk 0:00:16.2]} 63. Be1 {[%clk 0:00:33.3]} 1/2-1/2

[Event "*** Titled Tuesday Blitz"]
[Site "Chess.com"]
[Date "2020.05.05"]
[Round "6"]
[White "Mikhail_Golubev"]
[Black "mamey78"]
[Result "1-0"]
[WhiteElo "2515"]
[BlackElo "2330"]
[TimeControl "180+1"]
[EndTime "11:08:23 PDT"]
[Termination "Mikhail_Golubev won on time"]

1. e4 {[%clk 0:03:00.9]} 1... e5 {[%clk 0:02:56.6]} 2. Nf3 {[%clk 0:03:00.8]}
2... Nc6 {[%clk 0:02:56.1]} 3. Nc3 {[%clk 0:02:58.6]} 3... Nf6 {[%clk
0:02:55.1]} 4. d4 {[%clk 0:02:58.4]} 4... exd4 {[%clk 0:02:54.1]} 5. Nxd4 {[%clk
0:02:58.6]} 5... Nxe4 {[%clk 0:02:52.7]} 6. Nxe4 {[%clk 0:02:57.5]} 6... Qe7
{[%clk 0:02:51.4]} 7. f3 {[%clk 0:02:57.7]} 7... d5 {[%clk 0:02:51]} 8. Bb5
{[%clk 0:02:56.4]} 8... Bd7 {[%clk 0:02:49.2]} 9. Bxc6 {[%clk 0:02:32.3]} 9...
bxc6 {[%clk 0:02:44.8]} 10. O-O {[%clk 0:02:24.6]} 10... dxe4 {[%clk 0:02:42.9]}
11. Re1 {[%clk 0:02:24.2]} 11... O-O-O {[%clk 0:02:39.5]} 12. Rxe4 {[%clk
0:02:17.8]} 12... Qc5 {[%clk 0:02:21.8]} 13. c3 {[%clk 0:01:43.5]} 13... Qb6
{[%clk 0:01:57.6]} 14. Qe1 {[%clk 0:01:12.6]} 14... c5 {[%clk 0:01:50.3]} 15.
Nb3 {[%clk 0:01:06.6]} 15... Bf5 {[%clk 0:01:32.1]} 16. Re5 {[%clk 0:00:50.9]}
16... Bc2 {[%clk 0:01:18.3]} 17. Be3 {[%clk 0:00:42.2]} 17... f6 {[%clk
0:01:15.2]} 18. Bxc5 {[%clk 0:00:34.2]} 18... Bxc5+ {[%clk 0:01:11.4]} 19. Rxc5
{[%clk 0:00:34.1]} 19... Bxb3 {[%clk 0:01:07.3]} 20. Qf2 {[%clk 0:00:34.2]}
20... Rd1+ {[%clk 0:00:54.8]} 21. Rxd1 {[%clk 0:00:33]} 21... Bxd1 {[%clk
0:00:55.7]} 22. b4 {[%clk 0:00:31.5]} 22... Re8 {[%clk 0:00:53.2]} 23. h3 {[%clk
0:00:30.2]} 23... Qd6 {[%clk 0:00:42.6]} 24. Ra5 {[%clk 0:00:24]} 24... Re2
{[%clk 0:00:29.4]} 25. Qxa7 {[%clk 0:00:19.8]} 25... Re1+ {[%clk 0:00:20.4]} 26.
Kf2 {[%clk 0:00:19.9]} 26... Qd2+ {[%clk 0:00:20.4]} 27. Kg3 {[%clk 0:00:19.6]}
27... Qd6+ {[%clk 0:00:19.8]} 28. Kf2 {[%clk 0:00:18.4]} 28... Re2+ {[%clk
0:00:17.4]} 29. Kf1 {[%clk 0:00:18.4]} 29... Rd2 {[%clk 0:00:15.8]} 30. Qa8+
{[%clk 0:00:11.8]} 30... Kd7 {[%clk 0:00:15.5]} 31. Qe4 {[%clk 0:00:11.6]} 31...
Bc2 {[%clk 0:00:13.4]} 32. Qg4+ {[%clk 0:00:10.6]} 32... Ke7 {[%clk 0:00:11.6]}
33. Qxg7+ {[%clk 0:00:10.2]} 33... Ke6 {[%clk 0:00:11.5]} 34. Qg8+ {[%clk
0:00:10]} 34... Ke7 {[%clk 0:00:11.4]} 35. Qg7+ {[%clk 0:00:09.7]} 35... Ke6
{[%clk 0:00:11.3]} 36. Qg8+ {[%clk 0:00:09.3]} 36... Kd7 {[%clk 0:00:11.4]} 37.
Qg7+ {[%clk 0:00:08.6]} 37... Kc6 {[%clk 0:00:10.3]} 38. Qg4 {[%clk 0:00:06.9]}
38... Bd3+ {[%clk 0:00:07.7]} 39. Kg1 {[%clk 0:00:06.4]} 39... Qe5 {[%clk
0:00:05]} 40. Rxe5 {[%clk 0:00:03.5]} 40... fxe5 {[%clk 0:00:01.9]} 41. Qe6+
{[%clk 0:00:03.3]} 1-0

[Event "*** Titled Tuesday Blitz"]
[Site "Chess.com"]
[Date "2020.05.05"]
[Round "6"]
[White "r31415"]
[Black "SahajGrover"]
[Result "0-1"]
[WhiteElo "2412"]
[BlackElo "2727"]
[TimeControl "180+1"]
[EndTime "11:08:24 PDT"]
[Termination "SahajGrover won on time"]

1. e4 {[%clk 0:03:00.9]} 1... e6 {[%clk 0:02:57.9]} 2. d4 {[%clk 0:03:00.5]}
2... d5 {[%clk 0:02:58]} 3. Nc3 {[%clk 0:03:01.4]} 3... Bb4 {[%clk 0:02:57.7]}
4. exd5 {[%clk 0:03:01.4]} 4... exd5 {[%clk 0:02:57.8]} 5. Bd3 {[%clk
0:03:01.9]} 5... c6 {[%clk 0:02:57.7]} 6. Qf3 {[%clk 0:02:57]} 6... Qf6 {[%clk
0:02:57.4]} 7. Be3 {[%clk 0:02:52]} 7... Qxf3 {[%clk 0:02:56.4]} 8. Nxf3 {[%clk
0:02:51.6]} 8... Nf6 {[%clk 0:02:55.7]} 9. O-O {[%clk 0:02:50.1]} 9... O-O
{[%clk 0:02:55.1]} 10. Bg5 {[%clk 0:02:38.7]} 10... Nbd7 {[%clk 0:02:50.1]} 11.
Ne2 {[%clk 0:02:27.6]} 11... h6 {[%clk 0:02:48]} 12. Bf4 {[%clk 0:02:25.6]}
12... Ne4 {[%clk 0:02:44.9]} 13. c3 {[%clk 0:02:25.3]} 13... Ba5 {[%clk
0:02:42.6]} 14. Rfe1 {[%clk 0:02:21.3]} 14... g5 {[%clk 0:02:35.4]} 15. Be3
{[%clk 0:02:20.3]} 15... f5 {[%clk 0:02:34.9]} 16. g3 {[%clk 0:02:10.2]} 16...
Ndf6 {[%clk 0:02:30.9]} 17. Ne5 {[%clk 0:02:08.8]} 17... Bc7 {[%clk 0:02:14.2]}
18. f3 {[%clk 0:02:03.6]} 18... Nd6 {[%clk 0:02:13.7]} 19. Nc1 {[%clk
0:01:52.5]} 19... Nf7 {[%clk 0:02:13.6]} 20. f4 {[%clk 0:01:34.3]} 20... Ne4
{[%clk 0:01:38.3]} 21. Nb3 {[%clk 0:01:29.2]} 21... Nxe5 {[%clk 0:01:08.4]} 22.
dxe5 {[%clk 0:01:20.5]} 22... Bb6 {[%clk 0:01:08.1]} 23. Bxe4 {[%clk 0:01:01.5]}
23... fxe4 {[%clk 0:01:07.5]} 24. Bxb6 {[%clk 0:00:45.8]} 24... axb6 {[%clk
0:01:08.4]} 25. Rf1 {[%clk 0:00:45.9]} 25... Bh3 {[%clk 0:01:03.3]} 26. Rf2
{[%clk 0:00:45.5]} 26... gxf4 {[%clk 0:00:46.7]} 27. gxf4 {[%clk 0:00:44.4]}
27... Kf7 {[%clk 0:00:46.8]} 28. Nd4 {[%clk 0:00:41.2]} 28... Rg8+ {[%clk
0:00:45.1]} 29. Kh1 {[%clk 0:00:40.8]} 29... c5 {[%clk 0:00:40.4]} 30. Nb5
{[%clk 0:00:39.7]} 30... e3 {[%clk 0:00:37.4]} 31. Nd6+ {[%clk 0:00:40.4]} 31...
Ke6 {[%clk 0:00:36.8]} 32. Re2 {[%clk 0:00:41.3]} 32... d4 {[%clk 0:00:36.8]}
33. cxd4 {[%clk 0:00:40.7]} 33... cxd4 {[%clk 0:00:37.7]} 34. Nb5 {[%clk
0:00:07.8]} 34... d3 {[%clk 0:00:19]} 35. Nc7+ {[%clk 0:00:07.9]} 35... Kd7
{[%clk 0:00:16.9]} 36. Rxe3 {[%clk 0:00:08.8]} 36... Bg2+ {[%clk 0:00:17]} 37.
Kg1 {[%clk 0:00:09.7]} 37... Kxc7 {[%clk 0:00:16.7]} 38. a3 {[%clk 0:00:07.5]}
38... d2 {[%clk 0:00:12.9]} 39. Kf2 {[%clk 0:00:04.5]} 39... Bc6 {[%clk
0:00:11.6]} 40. Rd3 {[%clk 0:00:04.2]} 40... Rg2+ {[%clk 0:00:11.3]} 41. Ke3
{[%clk 0:00:03.9]} 41... Rxh2 {[%clk 0:00:05.7]} 42. Rxd2 {[%clk 0:00:03.3]}
42... Rh3+ {[%clk 0:00:05.9]} 43. Kf2 {[%clk 0:00:02.5]} 43... Rg8 {[%clk
0:00:06.1]} 44. Rg1 {[%clk 0:00:01.7]} 44... Rh2+ {[%clk 0:00:06.2]} 45. Ke3
{[%clk 0:00:01.6]} 45... Rh3+ {[%clk 0:00:04.3]} 46. Kf2 {[%clk 0:00:01.4]}
46... Rf3+ {[%clk 0:00:04.9]} 0-1

[Event "*** Titled Tuesday Blitz"]
[Site "Chess.com"]
[Date "2020.05.05"]
[Round "6"]
[White "GM_Levan_Pantsulaia"]
[Black "Gubajdullin"]
[Result "1-0"]
[WhiteElo "2776"]
[BlackElo "2550"]
[TimeControl "180+1"]
[EndTime "11:08:25 PDT"]
[Termination "GM_Levan_Pantsulaia won on time"]

1. Nf3 {[%clk 0:03:00.9]} 1... d5 {[%clk 0:02:56.9]} 2. g3 {[%clk 0:03:01.2]}
2... Nf6 {[%clk 0:02:55.3]} 3. Bg2 {[%clk 0:03:01.6]} 3... c6 {[%clk 0:02:54.1]}
4. c4 {[%clk 0:03:01.8]} 4... Bg4 {[%clk 0:02:47.4]} 5. Ne5 {[%clk 0:03:01]}
5... Be6 {[%clk 0:02:36.5]} 6. cxd5 {[%clk 0:03:01]} 6... Bxd5 {[%clk
0:02:31.1]} 7. Nf3 {[%clk 0:03:00.9]} 7... e5 {[%clk 0:02:27.4]} 8. Nc3 {[%clk
0:03:00.6]} 8... Bxf3 {[%clk 0:02:18.7]} 9. Bxf3 {[%clk 0:02:59.9]} 9... Bc5
{[%clk 0:02:16.6]} 10. O-O {[%clk 0:02:46.9]} 10... O-O {[%clk 0:02:15.4]} 11.
d3 {[%clk 0:02:45.9]} 11... Na6 {[%clk 0:02:11.6]} 12. a3 {[%clk 0:02:45.6]}
12... Nc7 {[%clk 0:02:08.6]} 13. Rb1 {[%clk 0:02:43.5]} 13... a5 {[%clk
0:02:04.4]} 14. Qc2 {[%clk 0:02:41.5]} 14... Ne6 {[%clk 0:02:01.2]} 15. e3
{[%clk 0:02:40.8]} 15... Qd7 {[%clk 0:01:58.3]} 16. Na4 {[%clk 0:02:28.1]} 16...
Ba7 {[%clk 0:01:52.6]} 17. Bd2 {[%clk 0:02:28.1]} 17... Ng5 {[%clk 0:01:41.6]}
18. Bg2 {[%clk 0:02:21.6]} 18... Qf5 {[%clk 0:01:41.2]} 19. f4 {[%clk
0:01:53.1]} 19... exf4 {[%clk 0:01:36.6]} 20. gxf4 {[%clk 0:01:53.4]} 20... Ne6
{[%clk 0:01:28.2]} 21. Kh1 {[%clk 0:01:48.1]} 21... Ng4 {[%clk 0:01:23.7]} 22.
Rbe1 {[%clk 0:01:39.2]} 22... Rad8 {[%clk 0:01:15.8]} 23. Be4 {[%clk 0:01:35]}
23... Qh5 {[%clk 0:01:10.8]} 24. Bc1 {[%clk 0:01:35]} 24... b5 {[%clk
0:01:06.4]} 25. Nc3 {[%clk 0:01:33.8]} 25... b4 {[%clk 0:01:04.3]} 26. Nd1
{[%clk 0:01:23.2]} 26... Nc5 {[%clk 0:00:57.5]} 27. axb4 {[%clk 0:01:09.3]}
27... axb4 {[%clk 0:00:56.5]} 28. Rg1 {[%clk 0:01:07.5]} 28... f5 {[%clk
0:00:55.3]} 29. Bxc6 {[%clk 0:00:53.2]} 29... Nxd3 {[%clk 0:00:52]} 30. Re2
{[%clk 0:00:53.4]} 30... Rf6 {[%clk 0:00:39]} 31. Bf3 {[%clk 0:00:48.6]} 31...
Bb6 {[%clk 0:00:34.2]} 32. Reg2 {[%clk 0:00:40.7]} 32... Rh6 {[%clk 0:00:29.4]}
33. Bxg4 {[%clk 0:00:29.1]} 33... fxg4 {[%clk 0:00:25.5]} 34. Rxg4 {[%clk
0:00:13.5]} 34... Rg6 {[%clk 0:00:20]} 35. Rxg6 {[%clk 0:00:11.6]} 35... hxg6
{[%clk 0:00:17.3]} 36. Rf1 {[%clk 0:00:06.5]} 36... Nxc1 {[%clk 0:00:13.6]} 37.
Qxc1 {[%clk 0:00:07.4]} 37... Qe2 {[%clk 0:00:06]} 38. Kg1 {[%clk 0:00:06.4]}
38... Kh7 {[%clk 0:00:04.6]} 39. b3 {[%clk 0:00:05.6]} 39... Rd2 {[%clk
0:00:02.7]} 40. Nf2 {[%clk 0:00:03.8]} 40... Bxe3 {[%clk 0:00:01]} 41. Qe1
{[%clk 0:00:04.3]} 41... Bxf2+ {[%clk 0:00:01.2]} 42. Qxf2 {[%clk 0:00:03.9]}
42... Qxf2+ {[%clk 0:00:01.1]} 43. Rxf2 {[%clk 0:00:04.8]} 1-0

[Event "*** Titled Tuesday Blitz"]
[Site "Chess.com"]
[Date "2020.05.05"]
[Round "6"]
[White "PenguinPacks"]
[Black "S-Fazulyanov"]
[Result "0-1"]
[WhiteElo "2344"]
[BlackElo "2553"]
[TimeControl "180+1"]
[EndTime "11:08:25 PDT"]
[Termination "S-Fazulyanov won by checkmate"]

1. e4 {[%clk 0:03:00.9]} 1... c5 {[%clk 0:03:00.1]} 2. Nc3 {[%clk 0:02:59.8]}
2... Nc6 {[%clk 0:02:58.2]} 3. g3 {[%clk 0:02:57.2]} 3... g6 {[%clk 0:02:58.4]}
4. Bg2 {[%clk 0:02:53.6]} 4... Bg7 {[%clk 0:02:58.9]} 5. Nge2 {[%clk 0:02:42.9]}
5... d6 {[%clk 0:02:58.9]} 6. O-O {[%clk 0:02:42.9]} 6... Rb8 {[%clk 0:02:54.7]}
7. a4 {[%clk 0:02:40.9]} 7... a6 {[%clk 0:02:54.9]} 8. d3 {[%clk 0:02:33.1]}
8... e5 {[%clk 0:02:54.6]} 9. Nd5 {[%clk 0:02:32.2]} 9... Nge7 {[%clk
0:02:49.7]} 10. Nec3 {[%clk 0:02:30.9]} 10... O-O {[%clk 0:02:46.8]} 11. f4
{[%clk 0:02:30.3]} 11... f5 {[%clk 0:02:46.4]} 12. Re1 {[%clk 0:02:29.3]} 12...
fxe4 {[%clk 0:02:41.3]} 13. dxe4 {[%clk 0:02:27.6]} 13... Be6 {[%clk 0:02:38]}
14. Be3 {[%clk 0:02:23.6]} 14... b5 {[%clk 0:02:32.1]} 15. Qd2 {[%clk
0:02:18.8]} 15... Nd4 {[%clk 0:02:15.6]} 16. Nxe7+ {[%clk 0:02:07.4]} 16... Qxe7
{[%clk 0:02:16.5]} 17. Nd5 {[%clk 0:02:02]} 17... Qd7 {[%clk 0:01:57.9]} 18. a5
{[%clk 0:01:54.9]} 18... Bxd5 {[%clk 0:01:55.2]} 19. exd5 {[%clk 0:01:53.3]}
19... Nf5 {[%clk 0:01:38.2]} 20. Bh3 {[%clk 0:01:49.2]} 20... exf4 {[%clk
0:01:38.5]} 21. Bxf4 {[%clk 0:01:48.4]} 21... Bxb2 {[%clk 0:01:38.2]} 22. Rad1
{[%clk 0:01:42.6]} 22... Bd4+ {[%clk 0:01:33.3]} 23. Kh1 {[%clk 0:01:42.1]}
23... Qf7 {[%clk 0:01:32.5]} 24. Re6 {[%clk 0:01:33]} 24... b4 {[%clk
0:01:32.1]} 25. Rde1 {[%clk 0:01:25.9]} 25... Rbd8 {[%clk 0:01:15.3]} 26. Qe2
{[%clk 0:01:06.8]} 26... Bc3 {[%clk 0:01:11.4]} 27. Rf1 {[%clk 0:00:58.2]} 27...
Qg7 {[%clk 0:01:11.4]} 28. Qe4 {[%clk 0:00:50.3]} 28... Qd4 {[%clk 0:00:58.1]}
29. Bg5 {[%clk 0:00:42.8]} 29... Qxe4+ {[%clk 0:00:39]} 30. Rxe4 {[%clk
0:00:43.7]} 30... Rde8 {[%clk 0:00:39.3]} 31. Ref4 {[%clk 0:00:22.8]} 31... Ng7
{[%clk 0:00:23.6]} 32. Bf6 {[%clk 0:00:21.2]} 32... Nh5 {[%clk 0:00:17.9]} 33.
Bxc3 {[%clk 0:00:20.5]} 33... Nxf4 {[%clk 0:00:17.4]} 34. gxf4 {[%clk
0:00:20.6]} 34... h5 {[%clk 0:00:17.6]} 35. Bd2 {[%clk 0:00:18.7]} 35... Re2
{[%clk 0:00:16.8]} 36. Be6+ {[%clk 0:00:18.6]} 36... Kg7 {[%clk 0:00:16.7]} 37.
Rd1 {[%clk 0:00:18.4]} 37... h4 {[%clk 0:00:11.5]} 38. f5 {[%clk 0:00:17.8]}
38... gxf5 {[%clk 0:00:11.3]} 39. Bf4 {[%clk 0:00:18.2]} 39... Rxc2 {[%clk
0:00:10.4]} 40. Bxd6 {[%clk 0:00:18.7]} 40... Rd8 {[%clk 0:00:08.4]} 41. Be5+
{[%clk 0:00:18.6]} 41... Kg6 {[%clk 0:00:08.9]} 42. Rg1+ {[%clk 0:00:18.8]}
42... Kh5 {[%clk 0:00:09.5]} 43. Bf7+ {[%clk 0:00:18.4]} 43... Kh6 {[%clk
0:00:10.1]} 44. Bf4+ {[%clk 0:00:19]} 44... Kh7 {[%clk 0:00:10.7]} 45. Be5
{[%clk 0:00:17.4]} 45... Re2 {[%clk 0:00:08.6]} 46. Bf6 {[%clk 0:00:17.1]} 46...
Rf8 {[%clk 0:00:07.5]} 47. Bg6+ {[%clk 0:00:17.4]} 47... Kh6 {[%clk 0:00:07.8]}
48. Ba1 {[%clk 0:00:15.5]} 48... Rg8 {[%clk 0:00:05.9]} 49. Bxf5 {[%clk
0:00:13.1]} 49... Rxg1+ {[%clk 0:00:06.8]} 50. Kxg1 {[%clk 0:00:12.2]} 50...
Re1+ {[%clk 0:00:07.7]} 51. Kf2 {[%clk 0:00:12.2]} 51... Rxa1 {[%clk 0:00:08.6]}
52. Ke2 {[%clk 0:00:11.6]} 52... Kg5 {[%clk 0:00:08.2]} 53. d6 {[%clk
0:00:11.9]} 53... Kf6 {[%clk 0:00:07.1]} 54. Bc2 {[%clk 0:00:10.8]} 54... Ra2
{[%clk 0:00:06.4]} 55. Kd3 {[%clk 0:00:11.7]} 55... Ke6 {[%clk 0:00:06.6]} 56.
Kc4 {[%clk 0:00:12]} 56... Kxd6 {[%clk 0:00:07.1]} 57. Be4 {[%clk 0:00:11.3]}
57... Ra3 {[%clk 0:00:07]} 58. h3 {[%clk 0:00:12.2]} 58... Rc3# {[%clk
0:00:07.2]} 0-1